[Event "*** Titled Tuesday Blitz"]
[Site "Chess.com"]
[Date "2020.04.21"]
[Round "6"]
[White "Chessalary"]
[Black "Budisavljevic"]
[Result "1/2-1/2"]
[WhiteElo "2256"]
[BlackElo "2418"]
[TimeControl "180+1"]
[EndTime "11:09:20 PDT"]
[Termination "Game drawn by repetition"]

1. e4 {[%clk 0:03:00.9]} 1... c5 {[%clk 0:02:58.4]} 2. Nf3 {[%clk 0:02:59.3]}
2... e6 {[%clk 0:02:57]} 3. d4 {[%clk 0:03:00.2]} 3... cxd4 {[%clk 0:02:57.9]}
4. Nxd4 {[%clk 0:02:54.9]} 4... a6 {[%clk 0:02:57.8]} 5. c4 {[%clk 0:02:54.2]}
5... Nf6 {[%clk 0:02:57.1]} 6. Nc3 {[%clk 0:02:53.9]} 6... Qc7 {[%clk
0:02:57.2]} 7. Be3 {[%clk 0:02:53.2]} 7... b6 {[%clk 0:02:57.6]} 8. Be2 {[%clk
0:02:47.4]} 8... Bb7 {[%clk 0:02:55.9]} 9. f3 {[%clk 0:02:47.7]} 9... Be7 {[%clk
0:02:56.2]} 10. O-O {[%clk 0:02:47.6]} 10... O-O {[%clk 0:02:56.5]} 11. Rc1
{[%clk 0:02:47.5]} 11... d6 {[%clk 0:02:56.4]} 12. b4 {[%clk 0:02:47.8]} 12...
Nbd7 {[%clk 0:02:56.5]} 13. a3 {[%clk 0:02:47.1]} 13... Rac8 {[%clk 0:02:56.1]}
14. Nb3 {[%clk 0:02:47.4]} 14... Qb8 {[%clk 0:02:54.9]} 15. Na4 {[%clk
0:02:47.8]} 15... Bd8 {[%clk 0:02:54.4]} 16. c5 {[%clk 0:02:47.4]} 16... dxc5
{[%clk 0:02:18.9]} 17. bxc5 {[%clk 0:02:48.3]} 17... b5 {[%clk 0:02:14.8]} 18.
Nb6 {[%clk 0:02:36.8]} 18... Nxb6 {[%clk 0:01:49.1]} 19. cxb6 {[%clk 0:02:37.7]}
19... Rc6 {[%clk 0:01:48.9]} 20. Na5 {[%clk 0:02:16.2]} 20... Rxb6 {[%clk
0:01:33.2]} 21. Nxb7 {[%clk 0:02:12.1]} 21... Rxb7 {[%clk 0:01:31.6]} 22. a4
{[%clk 0:02:11.2]} 22... Bb6 {[%clk 0:01:26.5]} 23. Bxb6 {[%clk 0:02:11.1]}
23... Rxb6 {[%clk 0:01:27.4]} 24. axb5 {[%clk 0:02:10.4]} 24... axb5 {[%clk
0:01:28.3]} 25. Qb3 {[%clk 0:02:08.9]} 25... b4 {[%clk 0:01:26.2]} 26. Rfd1
{[%clk 0:02:08.2]} 26... h6 {[%clk 0:01:20.4]} 27. Rc4 {[%clk 0:02:02.4]} 27...
Rc8 {[%clk 0:01:19]} 28. Rdc1 {[%clk 0:01:53.8]} 28... Rxc4 {[%clk 0:01:17.2]}
29. Rxc4 {[%clk 0:01:54.7]} 29... Qd6 {[%clk 0:00:44.1]} 30. Bd3 {[%clk
0:01:49.1]} 30... e5 {[%clk 0:00:35.4]} 31. Rc8+ {[%clk 0:01:46.2]} 31... Kh7
{[%clk 0:00:34.5]} 32. h4 {[%clk 0:01:01]} 32... Qd4+ {[%clk 0:00:29.2]} 33. Kh2
{[%clk 0:00:59.8]} 33... Qf2 {[%clk 0:00:21.7]} 34. Qxf7 {[%clk 0:00:57.3]}
34... Qxh4+ {[%clk 0:00:21.4]} 35. Kg1 {[%clk 0:00:57.5]} 35... Qe1+ {[%clk
0:00:20.8]} 36. Kh2 {[%clk 0:00:56.5]} 36... Qh4+ {[%clk 0:00:19.8]} 37. Kg1
{[%clk 0:00:56.6]} 37... b3 {[%clk 0:00:19.8]} 38. Qc7 {[%clk 0:00:07.5]} 38...
Qe1+ {[%clk 0:00:15.3]} 39. Kh2 {[%clk 0:00:07.8]} 39... Qh4+ {[%clk 0:00:15.2]}
40. Kg1 {[%clk 0:00:08]} 40... Qe1+ {[%clk 0:00:09.4]} 41. Kh2 {[%clk
0:00:07.6]} 41... Re6 {[%clk 0:00:04.1]} 42. Bc4 {[%clk 0:00:03.8]} 42... Qh4+
{[%clk 0:00:05]} 43. Kg1 {[%clk 0:00:03.2]} 43... Qe1+ {[%clk 0:00:05.9]} 44.
Kh2 {[%clk 0:00:03.3]} 44... Qh4+ {[%clk 0:00:05.8]} 45. Kg1 {[%clk 0:00:03.7]}
45... Qe1+ {[%clk 0:00:05]} 46. Kh2 {[%clk 0:00:04]} 1/2-1/2

[Event "*** Titled Tuesday Blitz"]
[Site "Chess.com"]
[Date "2020.04.21"]
[Round "6"]
[White "manitodeplomo"]
[Black "Izoria123"]
[Result "1/2-1/2"]
[WhiteElo "2616"]
[BlackElo "2781"]
[TimeControl "180+1"]
[EndTime "11:09:22 PDT"]
[Termination "Game drawn by repetition"]

1. d4 {[%clk 0:03:00.9]} 1... Nf6 {[%clk 0:02:56.2]} 2. c4 {[%clk 0:02:58.3]}
2... g6 {[%clk 0:02:56.8]} 3. Nc3 {[%clk 0:02:57.7]} 3... Bg7 {[%clk 0:02:57.5]}
4. e4 {[%clk 0:02:57.5]} 4... d6 {[%clk 0:02:58.1]} 5. Be2 {[%clk 0:02:58]} 5...
O-O {[%clk 0:02:58.1]} 6. Nf3 {[%clk 0:02:58.5]} 6... a5 {[%clk 0:02:56.9]} 7.
O-O {[%clk 0:02:52]} 7... Na6 {[%clk 0:02:57.2]} 8. Qc2 {[%clk 0:02:44.4]} 8...
e5 {[%clk 0:02:53.7]} 9. Rd1 {[%clk 0:02:44.6]} 9... Qe7 {[%clk 0:02:50.6]} 10.
h3 {[%clk 0:02:36.2]} 10... c6 {[%clk 0:02:40.9]} 11. d5 {[%clk 0:02:31.7]}
11... cxd5 {[%clk 0:02:24.9]} 12. cxd5 {[%clk 0:02:30.2]} 12... Bd7 {[%clk
0:02:19.6]} 13. Be3 {[%clk 0:02:27.9]} 13... Rfc8 {[%clk 0:02:19]} 14. a4 {[%clk
0:02:19.1]} 14... Nc5 {[%clk 0:02:16.7]} 15. Nd2 {[%clk 0:02:16.8]} 15... h5
{[%clk 0:02:09.5]} 16. Bb5 {[%clk 0:02:02.3]} 16... Kh7 {[%clk 0:01:39.5]} 17.
Bxd7 {[%clk 0:01:58]} 17... Nfxd7 {[%clk 0:01:40.4]} 18. Nc4 {[%clk 0:01:55.1]}
18... Bh6 {[%clk 0:01:38.7]} 19. Bxh6 {[%clk 0:01:54.3]} 19... Kxh6 {[%clk
0:01:39.6]} 20. Nb5 {[%clk 0:01:54.5]} 20... Ra6 {[%clk 0:01:39.2]} 21. Nxa5
{[%clk 0:01:46.8]} 21... Rxa5 {[%clk 0:01:24.5]} 22. Qd2+ {[%clk 0:01:46.1]}
22... Qg5 {[%clk 0:01:25.1]} 23. Qxa5 {[%clk 0:01:44.9]} 23... Nxe4 {[%clk
0:01:25.8]} 24. Qe1 {[%clk 0:01:35.4]} 24... Ndf6 {[%clk 0:01:26.2]} 25. Rac1
{[%clk 0:01:21.3]} 25... Rxc1 {[%clk 0:01:20.6]} 26. Rxc1 {[%clk 0:01:22.2]}
26... Nxd5 {[%clk 0:01:20.3]} 27. h4 {[%clk 0:00:59.3]} 27... Qxh4 {[%clk
0:01:11.5]} 28. Nxd6 {[%clk 0:00:56.2]} 28... Nxd6 {[%clk 0:01:04.9]} 29. Qxe5
{[%clk 0:00:55.5]} 29... Qf4 {[%clk 0:00:31.4]} 30. Qxf4+ {[%clk 0:00:40.7]}
30... Nxf4 {[%clk 0:00:32.3]} 31. Rc7 {[%clk 0:00:39.8]} 31... Ne2+ {[%clk
0:00:23.9]} 32. Kf1 {[%clk 0:00:38.3]} 32... Nd4 {[%clk 0:00:24.8]} 33. Rd7
{[%clk 0:00:34.2]} 33... N4f5 {[%clk 0:00:24.3]} 34. b4 {[%clk 0:00:33.1]} 34...
Kg5 {[%clk 0:00:22.6]} 35. a5 {[%clk 0:00:32.8]} 35... Kf6 {[%clk 0:00:23.2]}
36. b5 {[%clk 0:00:31.3]} 36... Ke6 {[%clk 0:00:21]} 37. Rxb7 {[%clk 0:00:16.9]}
37... Nxb7 {[%clk 0:00:20.5]} 38. a6 {[%clk 0:00:17.4]} 38... Nbd6 {[%clk
0:00:21.4]} 39. a7 {[%clk 0:00:16.9]} 39... Nxb5 {[%clk 0:00:21.9]} 40. a8=Q
{[%clk 0:00:17]} 40... Nbd6 {[%clk 0:00:22.8]} 41. Qa2+ {[%clk 0:00:15.6]} 41...
Kf6 {[%clk 0:00:23]} 42. Qa1+ {[%clk 0:00:16.2]} 42... Ke6 {[%clk 0:00:23]} 43.
g3 {[%clk 0:00:16.2]} 43... Ne8 {[%clk 0:00:19.2]} 44. Kg2 {[%clk 0:00:17.1]}
44... Nf6 {[%clk 0:00:15.7]} 45. Qa2+ {[%clk 0:00:17.3]} 45... Ke7 {[%clk
0:00:15.6]} 46. Qa7+ {[%clk 0:00:17.4]} 46... Kf8 {[%clk 0:00:15.7]} 47. Qb8+
{[%clk 0:00:16.2]} 47... Kg7 {[%clk 0:00:16.1]} 48. Qe5 {[%clk 0:00:16.6]} 48...
Nh6 {[%clk 0:00:16]} 49. f3 {[%clk 0:00:14.4]} 49... Ng8 {[%clk 0:00:14.3]} 50.
g4 {[%clk 0:00:10.8]} 50... hxg4 {[%clk 0:00:15.2]} 51. fxg4 {[%clk 0:00:11.5]}
51... Kf8 {[%clk 0:00:15.5]} 52. g5 {[%clk 0:00:10.8]} 52... Nh5 {[%clk
0:00:15.5]} 53. Kf3 {[%clk 0:00:10.1]} 53... Ne7 {[%clk 0:00:15.1]} 54. Qh8+
{[%clk 0:00:08.4]} 54... Ng8 {[%clk 0:00:14.4]} 55. Qe5 {[%clk 0:00:08.8]} 55...
Ne7 {[%clk 0:00:14.1]} 56. Qh8+ {[%clk 0:00:08.7]} 56... Ng8 {[%clk 0:00:14.3]}
57. Qe5 {[%clk 0:00:09]} 1/2-1/2

[Event "*** Titled Tuesday Blitz"]
[Site "Chess.com"]
[Date "2020.04.21"]
[Round "6"]
[White "regular_legs"]
[Black "ElGasanov"]
[Result "1-0"]
[WhiteElo "2581"]
[BlackElo "2737"]
[TimeControl "180+1"]
[EndTime "11:09:23 PDT"]
[Termination "regular_legs won on time"]

1. d4 {[%clk 0:02:59.2]} 1... e6 {[%clk 0:03:00]} 2. c4 {[%clk 0:02:59]} 2...
Bb4+ {[%clk 0:03:00.2]} 3. Bd2 {[%clk 0:02:58.6]} 3... a5 {[%clk 0:03:00.3]} 4.
Nf3 {[%clk 0:02:57.9]} 4... d6 {[%clk 0:03:00]} 5. Nc3 {[%clk 0:02:57.6]} 5...
Nf6 {[%clk 0:02:57]} 6. e3 {[%clk 0:02:57.3]} 6... Nbd7 {[%clk 0:02:55.9]} 7.
Bd3 {[%clk 0:02:51.5]} 7... e5 {[%clk 0:02:55.3]} 8. Qc2 {[%clk 0:02:51.2]} 8...
Qe7 {[%clk 0:02:52.1]} 9. Bf5 {[%clk 0:02:04.5]} 9... O-O {[%clk 0:02:28.4]} 10.
O-O {[%clk 0:02:03]} 10... Re8 {[%clk 0:02:16.9]} 11. dxe5 {[%clk 0:01:54.9]}
11... dxe5 {[%clk 0:02:14.6]} 12. a3 {[%clk 0:01:54.6]} 12... Bxc3 {[%clk
0:02:09.4]} 13. Bxc3 {[%clk 0:01:55.5]} 13... e4 {[%clk 0:01:54.7]} 14. Nd4
{[%clk 0:01:26.4]} 14... Nc5 {[%clk 0:01:38.7]} 15. b4 {[%clk 0:01:24.3]} 15...
axb4 {[%clk 0:01:32.4]} 16. axb4 {[%clk 0:01:25.2]} 16... Rxa1 {[%clk
0:01:32.6]} 17. Rxa1 {[%clk 0:01:26.1]} 17... Nd3 {[%clk 0:01:29.8]} 18. c5
{[%clk 0:01:24.1]} 18... Nd5 {[%clk 0:01:12.4]} 19. Qb3 {[%clk 0:01:10.3]} 19...
c6 {[%clk 0:01:03]} 20. Bxc8 {[%clk 0:00:58.4]} 20... Rxc8 {[%clk 0:01:03.9]}
21. Nf5 {[%clk 0:00:55.6]} 21... Qg5 {[%clk 0:00:59.5]} 22. Nd6 {[%clk
0:00:54.5]} 22... Rf8 {[%clk 0:00:32.2]} 23. Nxe4 {[%clk 0:00:53.8]} 23... Qg6
{[%clk 0:00:32.6]} 24. Nd6 {[%clk 0:00:51.5]} 24... h5 {[%clk 0:00:09.5]} 25.
Bd2 {[%clk 0:00:51.3]} 25... Ne5 {[%clk 0:00:08.8]} 26. e4 {[%clk 0:00:48.2]}
26... Nf6 {[%clk 0:00:07.2]} 27. Bf4 {[%clk 0:00:47.6]} 27... Neg4 {[%clk
0:00:05.9]} 28. f3 {[%clk 0:00:46.7]} 28... Nh6 {[%clk 0:00:05.9]} 29. Qe3
{[%clk 0:00:42.9]} 29... h4 {[%clk 0:00:05.3]} 30. Bxh6 {[%clk 0:00:42.6]} 30...
gxh6 {[%clk 0:00:05.3]} 31. Nf5 {[%clk 0:00:42.5]} 31... Kh7 {[%clk 0:00:05.4]}
32. Nxh4 {[%clk 0:00:42.2]} 32... Qh5 {[%clk 0:00:06]} 33. Nf5 {[%clk
0:00:41.7]} 33... Rg8 {[%clk 0:00:06.5]} 34. Ra7 {[%clk 0:00:34.8]} 34... Qg6
{[%clk 0:00:06.2]} 35. Qf2 {[%clk 0:00:18.7]} 35... Rd8 {[%clk 0:00:05.6]} 36.
g3 {[%clk 0:00:16.5]} 36... Rd1+ {[%clk 0:00:04.3]} 37. Kg2 {[%clk 0:00:16.9]}
37... Qg5 {[%clk 0:00:04]} 38. Ra2 {[%clk 0:00:15]} 38... Nd7 {[%clk 0:00:03.1]}
39. f4 {[%clk 0:00:13.4]} 39... Qg4 {[%clk 0:00:03.5]} 40. Rd2 {[%clk
0:00:13.2]} 40... Rxd2 {[%clk 0:00:02.7]} 41. Qxd2 {[%clk 0:00:14.1]} 41... Nf6
{[%clk 0:00:03.3]} 42. Qb2 {[%clk 0:00:13.2]} 42... Nxe4 {[%clk 0:00:02.6]} 43.
Ne3 {[%clk 0:00:13.1]} 43... Qg6 {[%clk 0:00:01]} 44. Qe5 {[%clk 0:00:12.5]} 1-0

[Event "*** Titled Tuesday Blitz"]
[Site "Chess.com"]
[Date "2020.04.21"]
[Round "6"]
[White "Mikhail_Biryukov"]
[Black "HansCoolNiemann"]
[Result "1-0"]
[WhiteElo "2687"]
[BlackElo "2928"]
[TimeControl "180+1"]
[EndTime "11:09:30 PDT"]
[Termination "Mikhail_Biryukov won on time"]

1. e4 {[%clk 0:03:00.9]} 1... g6 {[%clk 0:02:57.4]} 2. Nc3 {[%clk 0:02:59.4]}
2... Bg7 {[%clk 0:02:58.3]} 3. d4 {[%clk 0:02:58.9]} 3... c6 {[%clk 0:02:58.6]}
4. Be3 {[%clk 0:02:58.9]} 4... d5 {[%clk 0:02:58.5]} 5. g3 {[%clk 0:02:51.5]}
5... dxe4 {[%clk 0:02:41.5]} 6. Nxe4 {[%clk 0:02:51.6]} 6... Nf6 {[%clk
0:02:42.1]} 7. Nxf6+ {[%clk 0:02:51]} 7... exf6 {[%clk 0:02:43]} 8. Bg2 {[%clk
0:02:50.8]} 8... O-O {[%clk 0:02:43.5]} 9. Ne2 {[%clk 0:02:50.9]} 9... Nd7
{[%clk 0:02:43.8]} 10. O-O {[%clk 0:02:50.9]} 10... Nb6 {[%clk 0:02:44.2]} 11.
b3 {[%clk 0:02:50]} 11... Nd5 {[%clk 0:02:43.9]} 12. Bd2 {[%clk 0:02:46.8]}
12... f5 {[%clk 0:02:43.7]} 13. c4 {[%clk 0:02:46.4]} 13... Nf6 {[%clk
0:02:43.8]} 14. Be3 {[%clk 0:02:41.4]} 14... Ng4 {[%clk 0:02:39.9]} 15. Bf4
{[%clk 0:02:33.1]} 15... Re8 {[%clk 0:02:09.9]} 16. Qd3 {[%clk 0:02:30.2]} 16...
Bd7 {[%clk 0:01:58.7]} 17. Rad1 {[%clk 0:02:29.5]} 17... Qa5 {[%clk 0:01:58.2]}
18. a4 {[%clk 0:02:20.1]} 18... Rad8 {[%clk 0:01:55.5]} 19. h3 {[%clk 0:02:16]}
19... Nf6 {[%clk 0:01:55]} 20. Nc3 {[%clk 0:02:14.6]} 20... Bc8 {[%clk
0:01:53.7]} 21. d5 {[%clk 0:02:11.3]} 21... Ne4 {[%clk 0:01:27.8]} 22. Nxe4
{[%clk 0:02:03.7]} 22... fxe4 {[%clk 0:01:28.7]} 23. Bxe4 {[%clk 0:02:03.5]}
23... Bxh3 {[%clk 0:01:28.5]} 24. Bg2 {[%clk 0:01:58.9]} 24... Bxg2 {[%clk
0:01:25.2]} 25. Kxg2 {[%clk 0:01:59.8]} 25... cxd5 {[%clk 0:01:25.1]} 26. cxd5
{[%clk 0:01:58.6]} 26... Rd7 {[%clk 0:01:21.3]} 27. Qb5 {[%clk 0:01:29.7]} 27...
Qd8 {[%clk 0:01:07.1]} 28. Rfe1 {[%clk 0:01:21.3]} 28... Rxe1 {[%clk 0:01:05.9]}
29. Rxe1 {[%clk 0:01:21]} 29... a6 {[%clk 0:01:04.9]} 30. Qb4 {[%clk 0:01:13.9]}
30... Bf8 {[%clk 0:01:04.8]} 31. d6 {[%clk 0:01:11.9]} 31... Bxd6 {[%clk
0:00:59.3]} 32. Bxd6 {[%clk 0:01:11.6]} 32... Rxd6 {[%clk 0:01:00.2]} 33. Qxb7
{[%clk 0:01:12.1]} 33... Rf6 {[%clk 0:00:53.8]} 34. Qe4 {[%clk 0:01:04.1]} 34...
Qb6 {[%clk 0:00:49.7]} 35. Re3 {[%clk 0:00:55.2]} 35... h5 {[%clk 0:00:47]} 36.
b4 {[%clk 0:00:49.3]} 36... Kh7 {[%clk 0:00:40.5]} 37. Rf3 {[%clk 0:00:48.2]}
37... Rxf3 {[%clk 0:00:34.4]} 38. Kxf3 {[%clk 0:00:48.1]} 38... Qf6+ {[%clk
0:00:29.6]} 39. Kg2 {[%clk 0:00:45.6]} 39... Kg7 {[%clk 0:00:25.3]} 40. b5
{[%clk 0:00:44.7]} 40... axb5 {[%clk 0:00:26.2]} 41. axb5 {[%clk 0:00:45]} 41...
Qb2 {[%clk 0:00:26.7]} 42. Qc6 {[%clk 0:00:44.2]} 42... Qd4 {[%clk 0:00:20.5]}
43. b6 {[%clk 0:00:44.1]} 43... h4 {[%clk 0:00:20.7]} 44. b7 {[%clk 0:00:43.9]}
44... Qb4 {[%clk 0:00:19.7]} 45. Qc7 {[%clk 0:00:34]} 45... Qe4+ {[%clk
0:00:19]} 46. Kh2 {[%clk 0:00:31.4]} 46... hxg3+ {[%clk 0:00:18.7]} 47. Kxg3
{[%clk 0:00:31.4]} 47... Qd3+ {[%clk 0:00:12.9]} 48. f3 {[%clk 0:00:31.5]} 48...
Qe3 {[%clk 0:00:10.8]} 49. b8=Q {[%clk 0:00:28.9]} 49... Qg1+ {[%clk 0:00:10.8]}
50. Kf4 {[%clk 0:00:29.2]} 50... Qd4+ {[%clk 0:00:10.2]} 51. Kg3 {[%clk
0:00:29.2]} 51... Qg1+ {[%clk 0:00:09.9]} 52. Kh4 {[%clk 0:00:27.9]} 52... Qf2+
{[%clk 0:00:02]} 53. Qg3 {[%clk 0:00:27.1]} 53... Qd2 {[%clk 0:00:02.2]} 54.
Qbe5+ {[%clk 0:00:26.6]} 54... Kh7 {[%clk 0:00:01.5]} 55. Kh3 {[%clk 0:00:23.3]}
55... Qd1 {[%clk 0:00:01.1]} 56. Qh4+ {[%clk 0:00:22.3]} 1-0

[Event "*** Titled Tuesday Blitz"]
[Site "Chess.com"]
[Date "2020.04.21"]
[Round "6"]
[White "LogoCzar"]
[Black "josephymwale33"]
[Result "1-0"]
[WhiteElo "2453"]
[BlackElo "2290"]
[TimeControl "180+1"]
[EndTime "11:09:31 PDT"]
[Termination "LogoCzar won by resignation"]

1. e4 {[%clk 0:03:00.9]} 1... e5 {[%clk 0:02:59.4]} 2. Nf3 {[%clk 0:03:00.1]}
2... Nc6 {[%clk 0:02:58.9]} 3. Bb5 {[%clk 0:02:59.8]} 3... a6 {[%clk 0:02:57.9]}
4. Ba4 {[%clk 0:03:00]} 4... Nf6 {[%clk 0:02:56.3]} 5. O-O {[%clk 0:03:00]} 5...
b5 {[%clk 0:02:55.9]} 6. Bb3 {[%clk 0:02:59.7]} 6... Bc5 {[%clk 0:02:56.4]} 7.
a4 {[%clk 0:02:58.6]} 7... Bb7 {[%clk 0:02:55.4]} 8. d3 {[%clk 0:02:57.1]} 8...
d6 {[%clk 0:02:53.4]} 9. Nc3 {[%clk 0:02:54.8]} 9... b4 {[%clk 0:02:51.4]} 10.
Nd5 {[%clk 0:02:55]} 10... h6 {[%clk 0:02:45.6]} 11. c3 {[%clk 0:02:53]} 11...
a5 {[%clk 0:02:41.7]} 12. d4 {[%clk 0:02:48.1]} 12... Ba7 {[%clk 0:02:41.1]} 13.
Re1 {[%clk 0:02:46]} 13... O-O {[%clk 0:02:36.6]} 14. Qd3 {[%clk 0:02:37.8]}
14... Re8 {[%clk 0:02:28.1]} 15. Nxf6+ {[%clk 0:02:25.2]} 15... Qxf6 {[%clk
0:02:26.8]} 16. d5 {[%clk 0:02:25.1]} 16... Ne7 {[%clk 0:02:03]} 17. cxb4 {[%clk
0:02:24.4]} 17... axb4 {[%clk 0:02:01.4]} 18. Be3 {[%clk 0:02:22]} 18... c6
{[%clk 0:01:43]} 19. Bxa7 {[%clk 0:02:12.9]} 19... Rxa7 {[%clk 0:01:42.6]} 20.
dxc6 {[%clk 0:02:13]} 20... Bxc6 {[%clk 0:01:24]} 21. Red1 {[%clk 0:01:59.8]}
21... Rd7 {[%clk 0:01:15.8]} 22. Qc4 {[%clk 0:01:57.3]} 22... d5 {[%clk
0:00:57.2]} 23. exd5 {[%clk 0:01:53.1]} 23... Bxd5 {[%clk 0:00:58.1]} 24. Qb5
{[%clk 0:01:29.6]} 24... Red8 {[%clk 0:00:53.7]} 25. Bxd5 {[%clk 0:01:27.1]}
25... Nxd5 {[%clk 0:00:48.1]} 26. a5 {[%clk 0:01:14.3]} 26... e4 {[%clk
0:00:47.3]} 27. Nd4 {[%clk 0:01:11.6]} 27... e3 {[%clk 0:00:46.7]} 28. Nc6
{[%clk 0:01:04.9]} 28... Qxf2+ {[%clk 0:00:39.9]} 29. Kh1 {[%clk 0:01:04.1]}
29... Nf4 {[%clk 0:00:40.8]} 30. Rg1 {[%clk 0:00:56.3]} 30... Rd1 {[%clk
0:00:28.5]} 31. Ne7+ {[%clk 0:00:37.3]} 31... Kh8 {[%clk 0:00:27.4]} 32. Raxd1
{[%clk 0:00:34.1]} 32... Rf8 {[%clk 0:00:21.3]} 33. Qf1 {[%clk 0:00:27]} 33...
Qxf1 {[%clk 0:00:20]} 34. Rdxf1 {[%clk 0:00:26.5]} 34... Nd3 {[%clk 0:00:20.5]}
35. Rf3 {[%clk 0:00:21.3]} 35... Nf2+ {[%clk 0:00:19.6]} 36. Rxf2 {[%clk
0:00:21.5]} 36... exf2 {[%clk 0:00:20.5]} 37. Rf1 {[%clk 0:00:19.9]} 37... Re8
{[%clk 0:00:21.4]} 38. Nf5 {[%clk 0:00:19.7]} 38... Re1 {[%clk 0:00:20.2]} 39.
Ng3 {[%clk 0:00:19.9]} 39... f5 {[%clk 0:00:18.7]} 40. a6 {[%clk 0:00:15.5]}
40... f4 {[%clk 0:00:17.2]} 41. a7 {[%clk 0:00:15.3]} 41... Re8 {[%clk
0:00:11.8]} 42. Ne2 {[%clk 0:00:13.5]} 42... Ra8 {[%clk 0:00:12.5]} 43. Rxf2
{[%clk 0:00:13.3]} 43... Rxa7 {[%clk 0:00:13.4]} 44. Rxf4 {[%clk 0:00:13.3]}
44... Ra1+ {[%clk 0:00:13.3]} 45. Ng1 {[%clk 0:00:13.7]} 45... b3 {[%clk
0:00:12.5]} 46. Rb4 {[%clk 0:00:13.5]} 46... Kh7 {[%clk 0:00:13]} 47. Rxb3
{[%clk 0:00:13.8]} 47... Rb1 {[%clk 0:00:12.7]} 48. g3 {[%clk 0:00:14.2]} 48...
Kg6 {[%clk 0:00:13.6]} 49. Kg2 {[%clk 0:00:14.5]} 49... Kf5 {[%clk 0:00:14.3]}
50. Rb7 {[%clk 0:00:14]} 50... g6 {[%clk 0:00:15.2]} 51. Nf3 {[%clk 0:00:14.2]}
51... g5 {[%clk 0:00:16.1]} 52. Nd4+ {[%clk 0:00:14.2]} 52... Ke4 {[%clk
0:00:16.4]} 53. Nf3 {[%clk 0:00:13.8]} 53... g4 {[%clk 0:00:15.4]} 54. Nd2+
{[%clk 0:00:14.1]} 1-0

[Event "*** Titled Tuesday Blitz"]
[Site "Chess.com"]
[Date "2020.04.21"]
[Round "6"]
[White "Ranindu2003"]
[Black "ZAbdumalik"]
[Result "1-0"]
[WhiteElo "2520"]
[BlackElo "2677"]
[TimeControl "180+1"]
[EndTime "11:09:32 PDT"]
[Termination "Ranindu2003 won by resignation"]

1. e4 {[%clk 0:03:00.7]} 1... e5 {[%clk 0:02:59.2]} 2. Nf3 {[%clk 0:02:59.5]}
2... Nc6 {[%clk 0:02:59.8]} 3. Bb5 {[%clk 0:03:00.1]} 3... a6 {[%clk 0:02:59.8]}
4. Ba4 {[%clk 0:02:59.9]} 4... Nf6 {[%clk 0:02:59.9]} 5. O-O {[%clk 0:02:59.5]}
5... Be7 {[%clk 0:03:00.2]} 6. d3 {[%clk 0:02:59.8]} 6... b5 {[%clk 0:03:00.3]}
7. Bb3 {[%clk 0:03:00]} 7... d6 {[%clk 0:03:01.2]} 8. a3 {[%clk 0:03:00.4]} 8...
O-O {[%clk 0:02:59.5]} 9. Nc3 {[%clk 0:03:00.1]} 9... Na5 {[%clk 0:02:59.8]} 10.
Ba2 {[%clk 0:03:00.4]} 10... c5 {[%clk 0:03:00.5]} 11. Bg5 {[%clk 0:02:39]}
11... Be6 {[%clk 0:02:56.6]} 12. b4 {[%clk 0:02:32.7]} 12... Nc6 {[%clk
0:02:48]} 13. Bxf6 {[%clk 0:02:25.6]} 13... Bxf6 {[%clk 0:02:47]} 14. Nd5 {[%clk
0:02:24.5]} 14... Rc8 {[%clk 0:02:44.1]} 15. Rb1 {[%clk 0:02:14.5]} 15... g6
{[%clk 0:02:41]} 16. c4 {[%clk 0:02:06.5]} 16... bxc4 {[%clk 0:02:34.8]} 17.
dxc4 {[%clk 0:02:07.1]} 17... Bg7 {[%clk 0:02:30.4]} 18. bxc5 {[%clk 0:01:35.5]}
18... dxc5 {[%clk 0:02:29.7]} 19. Qa4 {[%clk 0:01:30.2]} 19... f5 {[%clk
0:02:11.9]} 20. exf5 {[%clk 0:01:21.6]} 20... gxf5 {[%clk 0:02:10.3]} 21. Rbd1
{[%clk 0:01:18.5]} 21... Qe8 {[%clk 0:02:01.5]} 22. Ng5 {[%clk 0:01:12.7]} 22...
Nd4 {[%clk 0:01:54.5]} 23. Qxa6 {[%clk 0:01:04.4]} 23... Rc6 {[%clk 0:01:39.9]}
24. Qa4 {[%clk 0:00:55.9]} 24... Bd7 {[%clk 0:01:37.5]} 25. Qa7 {[%clk
0:00:50.7]} 25... Rg6 {[%clk 0:01:30]} 26. f4 {[%clk 0:00:32.8]} 26... exf4
{[%clk 0:01:22.6]} 27. Nf3 {[%clk 0:00:27.5]} 27... Qe2 {[%clk 0:01:13.8]} 28.
Nxf4 {[%clk 0:00:24.7]} 28... Nxf3+ {[%clk 0:01:03.8]} 29. Kh1 {[%clk
0:00:24.5]} 29... Rh6 {[%clk 0:01:01.5]} 30. h3 {[%clk 0:00:13.1]} 30... Qxa2
{[%clk 0:00:52.2]} 31. Rxd7 {[%clk 0:00:12.7]} 31... Be5 {[%clk 0:00:46.3]} 32.
Rxf3 {[%clk 0:00:12.6]} 32... Qb1+ {[%clk 0:00:39.4]} 33. Kh2 {[%clk 0:00:12.5]}
33... Qc1 {[%clk 0:00:37]} 34. g3 {[%clk 0:00:08.1]} 34... Qc2+ {[%clk 0:00:26]}
35. Ng2 {[%clk 0:00:08.1]} 35... Qxc4 {[%clk 0:00:24.7]} 36. Qb7 {[%clk
0:00:06.3]} 36... Rg6 {[%clk 0:00:19.9]} 37. Qd5+ {[%clk 0:00:06.7]} 37... Qxd5
{[%clk 0:00:20.4]} 38. Rxd5 {[%clk 0:00:07.6]} 38... Bd4 {[%clk 0:00:21.2]} 39.
Rdxf5 {[%clk 0:00:07.5]} 39... Ra8 {[%clk 0:00:20.5]} 40. Nh4 {[%clk 0:00:05.3]}
40... Re6 {[%clk 0:00:20.4]} 41. Rd5 {[%clk 0:00:05.7]} 41... Re2+ {[%clk
0:00:20.1]} 42. Kh1 {[%clk 0:00:06.2]} 42... Rxa3 {[%clk 0:00:19.3]} 43. Rxa3
{[%clk 0:00:05.1]} 43... Re1+ {[%clk 0:00:18.5]} 44. Kh2 {[%clk 0:00:05.7]}
44... Re2+ {[%clk 0:00:18.9]} 45. Ng2 {[%clk 0:00:06.4]} 1-0